Cogmind - Beta 12 @@@ ROGUE MODE // 2023.04.02 @ 15:48:28 Player: Azken Zutik Result: Core destroyed Performance ------------- Evolutions (0) 0 Regions Visited (3) 600 Robots Destroyed (92) 460 Value Destroyed (1555) 1555 Prototype IDs (23) 460 Alien Tech Used (0) 0 Bonus (882) 882 TOTAL SCORE: 3957 Bonus ------- High Alert Combat Kills 582 Aligned with FarCom 300 Cogmind --------- Core Integrity 0/250 Matter 252/300 Energy 100/100 System Corruption 21% Temperature Cool (0) Movement Core (550) Ox10 Location -10/Exiles Parts ------- > --- POWER (1) -------- Ion Engine > --- PROPULSION (2) --- Light Treads Light Treads > --- UTILITY (2) ------ Heat Sink Large Storage Unit > --- WEAPON (2) ------- Beam Cannon Beam Cannon > --- INVENTORY (15) --- Light Ion Engine High-capacity Storage Unit High-capacity Matter Pod (200) High-capacity Matter Pod (200) Core Shielding Weapon Shielding Backup Plating I Light Armor Plating Tractor Beam EM Pulse Gun Light Assault Rifle Light Assault Rifle Hammer Peak State ------------ > --- POWER ------------ Light Ion Engine > --- PROPULSION ------- Light Treads Light Treads > --- UTILITY ---------- Small Storage Unit Improved Terrain Scanner > --- WEAPON ----------- Medium Laser Small Laser > --- INVENTORY -------- Ion Engine Seismic Detector Tractor Beam EM Pulse Gun [Rating: 9] Favorites ----------- Power Ion Engine Engine Ion Engine Propulsion Light Treads Treads Light Treads Leg Aluminum Leg Utility Large Storage Unit Device Improved Terrain Scanner Storage Large Storage Unit Protection Light Armor Plating Weapon Medium Laser Energy Gun Medium Laser Energy Cannon Beam Cannon Launcher Grenade Launcher Special Weapon Mining Laser Impact Weapon Hammer Build | -11 -10 -10 -10 ------- Run | Jun Mat Min Exi Slots Evolved . | . . . . Power . | . . . . Propulsion . | . . . . Utility . | . . . . Weapon . | . . . . Parts Attached 38 | 4 31 3 . Power 4 | . 4 . . Engine 4 | . 4 . . Core . | . . . . Reactor . | . . . . Propulsion 3 | 2 . 1 . Treads 3 | 2 . 1 . Leg . | . . . . Wheel . | . . . . Hover . | . . . . Flight . | . . . . Utility 10 | 2 8 . . Device 6 | 2 4 . . Storage 2 | . 2 . . Processor . | . . . . Hackware . | . . . . Protection 2 | . 2 . . Artifact . | . . . . Weapon 21 | . 19 2 . Energy Gun 2 | . 2 . . Energy Cannon 8 | . 7 1 . Ballistic Gun . | . . . . Ballistic Cannon . | . . . . Launcher 4 | . 3 1 . Special Weapon 2 | . 2 . . Impact Weapon 5 | . 5 . . Slashing Weapon . | . . . . Piercing Weapon . | . . . . Special Melee Weapon . | . . . . Unidentified Prototypes . | . . . . Parts Lost 3 | . 1 2 . Power . | . . . . Propulsion 1 | . . 1 . Utility . | . . . . Weapon 2 | . 1 1 . Highest Loss Streak 2 | . 1 2 . To Critical Strikes . | . . . . Average Slot Usage (%) 100 | . 100 100 100 Engine 14 | . 14 14 14 Treads 28 | . 28 28 28 Device 12 | . 12 14 14 Storage 14 | . 14 14 14 Protection 1 | . 1 . . Energy Gun 10 | . 10 . . Energy Cannon 4 | . 3 22 28 Launcher 6 | . 7 . . Special Weapon 4 | . 4 . . Impact Weapon 1 | . 1 6 . Naked Turns . | . . . . Heaviest Build 34 | 12 34 32 32 Greatest Support 40 | 40 40 40 40 Greatest Overweight (x) . | . . . . Average Overweight (x) . | . . . . Largest Inventory Capacity 15 | 8 15 15 15 Average Capacity 11 | 8 11 15 15 Most Carried 15 | 6 15 15 13 Average Carried 9 | 4 9 14 13 Final Capacity 15 | 8 15 15 15 Final Carried 15 | 6 15 13 13 Class Distribution -------------------- 100% | Mutant Dominant Class ---------------- Mutant | -10/Materials Mutant | -10/Mines Mutant | -10/Exiles Resources | -11 -10 -10 -10 ----------- Run | Jun Mat Min Exi Matter Collected 2057 | 240 1810 7 . Remotely 1175 | . 1175 . . Salvage Created 2884 | 326 2549 9 . Parts 168 | 31 137 . . Haulers Intercepted 2 | . 2 . . Recyclers Shooed 11 | 1 10 . . Parts Field Recycled . | . . . . Retrieved Matter . | . . . . Parts Self-Destructed . | . . . . Prevented . | . . . . Kills | -11 -10 -10 -10 ------- Run | Jun Mat Min Exi Combat Hostiles Destroyed 34 | . 29 5 . Guns 7 | . 7 . . Cannons 17 | . 16 1 . AOE 10 | . 6 4 . Classes Destroyed 10 | 3 6 1 . Worker 10 | 4 6 . . Builder 20 | . 20 . . Tunneler 9 | 9 . . . Hauler 2 | . 2 . . Recycler 20 | 1 19 . . Mechanic 1 | . 1 . . Watcher 3 | . 3 . . Swarmer 6 | . 6 . . Grunt 23 | . 23 . . Assembled 5 | . . 5 . Best Kill Streak 6 | 4 6 5 . Combat Bots Only 5 | . 3 5 . Max Kills in Single Turn 3 | 1 3 3 . Gunslinging . | . . . . Exploded 3 | . 3 3 . Melee . | . . . . Uniques/NPCs Destroyed . | . . . . Combat | -11 -10 -10 -10 -------- Run | Jun Mat Min Exi Damage Taken 922 | . 546 149 227 Core 251 | . 59 2 190 Absorbed by Shields . | . . . . Core Remaining (%) 100 | 100 . . . Volleys Fired 214 | 21 189 4 . Largest 2 | 2 2 2 . Hottest 120 | 90 120 120 . Shots Fired 305 | 42 257 6 . Gun 101 | 42 59 . . Cannon 96 | . 92 4 . Launcher 107 | . 105 2 . Special 1 | . 1 . . Kinetic . | . . . . Thermal 198 | 42 152 4 . Explosive 107 | . 105 2 . Electromagnetic . | . . . . Robot Hit Streak 13 | 13 12 2 . Robot Miss Streak 4 | 1 4 1 . Penetration Max . | . . . . Secondary Targets . | . . . . Shots Hit Robots 138 | 31 104 3 . Core Hits 131 | 15 107 9 . Critical Kills . | . . . . Critical Parts Destroyed 1 | . 1 . . Critical Strikes 6 | . 6 . . Burn 5 | . 5 . . Smash 1 | . 1 . . Melee Attacks 37 | . 37 . . Impact 37 | . 37 . . Slashing . | . . . . Piercing . | . . . . Sneak Attacks 5 | . 5 . . Combat Hostiles . | . . . . Follow-up Attacks . | . . . . Damage Inflicted 4839 | 365 4104 314 56 Guns 791 | 365 426 . . Cannons 1099 | . 1064 35 . Explosions 2566 | . 2287 279 . Melee 288 | . 288 . . Ramming 95 | . 39 . 56 Kinetic . | . . . . Thermal 1890 | 365 1490 35 . Explosive 2566 | . 2287 279 . Electromagnetic . | . . . . Impact 288 | . 288 . . Slashing . | . . . . Piercing . | . . . . Highest Corruption 21 | . . . 21 Average Corruption 11 | . . . 11 Corruption Purged . | . . . . Corruption Blocked . | . . . . Effects 7 | . . . 7 Message Errors 1 | . . . 1 Matter Fused 2 | . . . 2 Energy Discharges 1 | . . . 1 Data Loss (minor) 3 | . . . 3 Overload Shots . | . . . . Overflow Damage 289 | . 258 31 . Projectiles 17 | . 11 6 . Explosions 149 | . 124 25 . Melee 123 | . 123 . . Knockbacks 3 | . 3 . . Impact 3 | . 3 . . Kinetic . | . . . . Secondary . | . . . . Self-Inflicted Damage 136 | . 17 63 56 Shots 3 | . 1 2 . Rammed 12 | . 12 . . Targets Rammed 12 | . 12 . . Kicked . | . . . . Crushed . | . . . . Highest Temperature 210 | 210 204 60 . Average Temperature 65 | 76 63 27 . Received Heat Transfer 268 | . 228 40 . Effects 1 | . 1 . . Interference 1 | . 1 . . Siege Activations . | . . . . Robots Corrupted . | . . . . Combat Hostiles . | . . . . Parts Fried 2 | . 2 . . Impact Corruptions 4 | . 4 . . Robots Melted . | . . . . Combat Hostiles . | . . . . Parts Melted 11 | 4 7 . . Heat Transferred 4733 | 1003 3656 74 . Parts Sabotaged . | . . . . Parts Stolen . | . . . . Parts Stripped . | . . . . Power Chain Reactions . | . . . . Missiles Intercepted . | . . . . Alert | -11 -10 -10 -10 ------- Run | Jun Mat Min Exi Peak Influence 2241 | 70 2241 895 . Initial 873 | . 45 873 . Average 631 | 41 646 877 . Maximum Alert Level 5 | . 5 3 . Low Security (%) 40 | 100 39 . . Level 1 8 | . 8 . . Level 2 9 | . 9 . . Level 3 22 | . 22 100 . Level 4 7 | . 7 . . Level 5 12 | . 12 . . High Security . | . . . . Max Security . | . . . . Squads Dispatched 11 | . 11 . . Investigation 10 | . 10 . . Extermination . | . . . . Reinforcement 1 | . 1 . . Assault . | . . . . Garrison . | . . . . Intercept . | . . . . Searches Triggered . | . . . . Construction Impeded . | . . . . Haulers Reinforced . | . . . . Active Scanning Responses . | . . . . Cargo Convoy Interrupts . | . . . . Stealth | -11 -10 -10 -10 --------- Run | Jun Mat Min Exi Distress Signals 2 | . 2 . . Communications Jammed . | . . . . Distress Signals . | . . . . Times Spotted 43 | . 38 5 . Peak Tracking Total 5 | . 3 5 . Tactical Retreats 1 | . 1 . . Traps | -11 -10 -10 -10 ------- Run | Jun Mat Min Exi Traps Triggered 4 | . 4 . . Indirectly . | . . . . Trap Hack Attempts . | . . . . Triggered . | . . . . Disarmed . | . . . . Reprogrammed . | . . . . Reused . | . . . . Traps Extracted . | . . . . Installed . | . . . . Triggered . | . . . . Machines | -11 -10 -10 -10 ---------- Run | Jun Mat Min Exi Machines Disabled 32 | . 31 1 . Max in Single Turn 3 | . 3 1 . Machines Repaired 2 | . 2 . . Machines Sabotaged . | . . . . Overloaded Fab Kills . | . . . . Hacking | -11 -10 -10 -10 --------- Run | Jun Mat Min Exi Machines Accessed 9 | . 8 . 1 Terminals 5 | . 5 . . Fabricators . | . . . . Repair Stations 1 | . 1 . . Recycling Units 2 | . 2 . . Scanalyzers . | . . . . Garrison Access . | . . . . Total Hacks 18 | . 17 . 1 Successful 10 | . 9 . 1 Failed 8 | . 8 . . Catastrophic 1 | . 1 . . Database Lockouts . | . . . . Manual 15 | . 14 . 1 Terminals 10 | . 10 . . Fabricators . | . . . . Repair Stations 3 | . 3 . . Recycling Units 4 | . 4 . . Scanalyzers . | . . . . Garrison Access . | . . . . Terminal Hacks 3 | . 2 . 1 Robot Analysis 2 | . 2 . . EX-Prototype ID Bank 1 | . . . 1 Fabricator Hacks . | . . . . Repair Station Hacks 1 | . 1 . . Scan Component 1 | . 1 . . Recycling Unit Hacks . | . . . . Scanalyzer . | . . . . Garrison Access Hacks . | . . . . Unauthorized Hacks 6 | . 6 . . Terminals 4 | . 4 . . Sabotage 4 | . 4 . . Fabricators . | . . . . Repair Stations . | . . . . Recycling Units 2 | . 2 . . Tunnel 2 | . 2 . . Scanalyzers . | . . . . Garrison Access . | . . . . Data Cores Recovered . | . . . . Used . | . . . . Hacking Detections 4 | . 4 . . Full Trace Events 2 | . 2 . . Feedback Events . | . . . . Feedback Blocked . | . . . . Robot Schematics Acquired . | . . . . Robots Built . | . . . . Authchips . | . . . . Time . | . . . . Total Robot Build Rating . | . . . . Part Schematics Acquired . | . . . . Parts Built . | . . . . Authchips . | . . . . Time . | . . . . Total Part Build Rating . | . . . . Parts Repaired . | . . . . Time . | . . . . Parts Recycled . | . . . . Recycled Matter . | . . . . Retrieved Matter . | . . . . Retrieved Components . | . . . . Parts Scanalyzed . | . . . . Part Schematics Acquired . | . . . . Parts Damaged . | . . . . Bothacking | -11 -10 -10 -10 ------------ Run | Jun Mat Min Exi Used RIF Installer . | . . . . Robots Hacked . | . . . . Non-combat . | . . . . Combat . | . . . . Robot Hacks Applied . | . . . . Relay Couplers Released . | . . . . Fabnet Peak Effective % . | . . . . Robots Rewired . | . . . . Allies Hacked . | . . . . Hacks Repelled . | . . . . Allies | -11 -10 -10 -10 -------- Run | Jun Mat Min Exi Total Allies . | . . . . Largest Group . | . . . . Highest-Rated Group . | . . . . Highest-Rated Ally . | . . . . Total Orders . | . . . . Ally Attacks . | . . . . Total Damage . | . . . . Kills . | . . . . Allies Corrupted . | . . . . Allies Melted . | . . . . Intel | -11 -10 -10 -10 ------- Run | Jun Mat Min Exi Robot Analysis Total 2 | . 2 . . Derelict Logs Recovered . | . . . . Drone Launches . | . . . . Drone Recoveries . | . . . . Exploration | -11 -10 -10 -10 ------------- Run | Jun Mat Min Exi Turns Passed 13711 | 343 12776 76 516 Spaces Moved 2555 | 54 2244 40 217 Core . | . . . . Treads 2555 | 54 2244 40 217 Legs . | . . . . Wheels . | . . . . Hover . | . . . . Flight . | . . . . Fastest Speed 160 | 160 160 160 160 Average Speed 160 | 160 160 160 160 Slowest Speed 160 | 160 160 160 160 Overloaded Moves . | . . . . Propulsion Burnouts . | . . . . Robots Hopped . | . . . . Cave-ins Triggered . | . . . . Exploration Rate (%) 39 | 3 99 13 41 Regions Visited 3 Branch Regions 2 Pre-discovered Areas 2 | . 2 . . Known Exits Taken . | . . . . Unknown Exits Taken 3 | 1 1 1 . Scrap Searched . | . . . . Spaces Dug 8 | . 8 . . Terrain Destroyed 849 | . 835 14 . Melee . | . . . . Projectile 1 | . 1 . . AOE 848 | . 834 14 . Terrain Rammed 33 | . . . 33 Walls Destroyed . | . . . . Machines Disabled . | . . . . Actions | -11 -10 -10 -10 --------- Run | Jun Mat Min Exi Total 11662 | 270 11097 46 249 Wait 8736 | 184 8552 . . Move 2552 | 53 2243 39 217 Hop . | . . . . Pick Up 21 | 4 17 . . Fast Attach 3 | 1 2 . . Attach 6 | 2 2 2 . Detach 1 | . 1 . . Swap 29 | 1 27 1 . Drop 19 | 4 15 . . Fire 214 | 21 189 4 . Melee 37 | . 37 . . Ram 32 | . . . 32 Kick . | . . . . Crush 12 | . 12 . . Escape Stasis . | . . . . Rewire . | . . . . Trap . | . . . . Miscellaneous . | . . . . Route ------- -11/Junkyard -10/Materials (discovered 4 exits: [*Mat x3] / [*Min]) -10/Mines -10/Exiles History --------- Turn | Location | Event 14 | -11/Junkyard | Discovered new exit (range 3) 344 | -11/Junkyard | Entered Materials 345 | -10/Materials | Build established: Mutant 5089 | -10/Materials | Discovered new exit (range 7) 9951 | -10/Materials | Discovered new exit (range 10) 10288 | -10/Materials | Discovered new exit (range 13) 10629 | -10/Materials | Discovered new exit (range 12) 13120 | -10/Materials | Entered Mines 13121 | -10/Mines | Assembled infested the area 13190 | -10/Mines | Deemed a non-threat by the Exiles lab entrance 13190 | -10/Mines | Discovered new exit (range 5) 13196 | -10/Mines | Entered Exiles 13236 | -10/Exiles | Met 8R-AWN 13267 | -10/Exiles | Met EX-HEX 13310 | -10/Exiles | Met EX-BIN 13329 | -10/Exiles | Aligned with FarCom system 13331 | -10/Exiles | Given EX-Vault access code 13379 | -10/Exiles | Opened EX-Vault 13417 | -10/Exiles | Warned to stay clear of 0b10 Research branches 13592 | -10/Exiles | Core integrity fell below 50% 13608 | -10/Exiles | System corruption reached 10% 13641 | -10/Exiles | Core integrity fell below 20% 13712 | -10/Exiles | Core destroyed Last Messages --------------- 13661_ System corrupted: Component data lost. 13662_ Slammed into Wall. 13668_ Destabilizing: System corrupted (+1). 13673_ Slammed into Wall. 13673_ Destabilizing: Core damaged (-5). 13677_ System corrupted: Matter fused (-5). 13679_ Slammed into Wall. 13679_ Destabilizing: System corrupted (+2). 13684_ Slammed into Wall. 13684_ Destabilizing: System corrupted (+1). 13684_ Destabilizing: Core damaged (-5). 13690_ Slammed into Wall. 13690_ Destabilizing: System corrupted (+2). 13690_ Destabilizing: System corrupted (+1). 13695_ Slammed into Wall. 13695_ Destabilizing: Core damaged (-5). 13701_ Slammed into Wall. 13701_ Destabilizing: Core damaged (-7). 13706_ Slammed into Wall. 13712_ Destabilizing: Core damaged (-5). Map ----- +----------------------------------------------------+ | ""#??????????????????????????????????????????????? | | ""#??????????????????????????????????????????????? | | ""#??????????????????????????????????????????????? | | """??????????????????????????????????????????????? | | ""#??????????????????????????????????????????????? | | """??????????????????????????????????????????????? | | #??????????????????????????????????????????????? | | ""#??????????????????????????????????????????????? | | ###??????????????????????????????????????????????? | | ?????????????????????????????????????????????????? | | ?????????????????????????????????????????????????? | | ?????????????????????????????????????????????????? | | #########????????????????????????????????????????? | | """"""""##???????????????????????????????????????? | | """ """"##?????????????????????????????????# ??? | | "" " #????????????????????????????????# #? | | " """#???????????????????????????????# # | | " "#???????????#####???????????????# # | | " "##?????????##" #??????????????## ? | | ""###???????#" g #?????????????## #?? | | """#??????##" ##????????????# #?? | | "#????### ###????????### #??? | | ##???# ########## #??? | | ##?## #""""## #???? | | ### * ##??? | | ##@ * #??? | | #### ##?? | | ""#?#"""""#### ### | | #"""##?#######??#### * # | | ######??????????????##### | | ##???????????????????????### | | " ##??????????????????????????### | | """ ""#?????????????????????????????### | | ""#" "##??????????????????????????????#" | | """##"""""""##???????????????????????????????#### | | ????#########???????????????????????????????????# | | ????????????????????????????????????????????????## | | ?????????????????????????????????????????????????# | | ?????????????????????????????????????????????????? | | ?????????????????????????????????????????????????? | | ?????????????????????????????????????????????????? | | ?????????????????????????????????????????????????? | | ?????????????????????????????????????????????????? | | ?????????????????????????????????????????????????? | | ?????????????????????????????????????????????????? | | ?????????????????????????????????????????????????? | | ?????????????????????????????????????????????????? | | ?????????????????????????????????????????????????? | | ?????????????????????????????????????????????????? | | ?????????????????????????????????????????????????? | +----------------------------------------------------+ Best States ------------- Heat Dissipation 35 Energy Generation 10 Energy Capacity 250 Matter Stores 300 Matter Capacity 300 Sight Range 16 Terrain Scan Range 16 Terrain Scan Density 10 Armor Coverage 150 Core Shielding 20 Evasion (%) 40 Recoil Reduction 2 Item Schematics ----------------- None Robot Schematics ------------------ None Fabricated ------------ Nothing Alien Tech Used ----------------- None Achievements -------------- None Challenges ------------ None Game ------ Seed TrackerWarpProcessor Manual? 0 Play Time 00:41:28 Cumulative 418.2 hours Start 2023.04.02 @ 14:56:04 End 2023.04.02 @ 15:48:28 Sessions 1 Manual Loads 0 Difficulty Rogue Special Mode None Game No. 191 Rogue 191 Adventurer 0 Explorer 0 Win Type - Total 9 Types 5/1/0/1/2/0/0/0/0 Lore% 67 Gallery% 81 Achievement% 71 Wizard Run 0 Options --------- ASCII 0 Keyboard 0 Movement Arrows Keybinds 0 Fullscreen 0 Font 28/SmallcapsGlow Map View 72x54 Tactical HUD 1 Map Filters NONE Filters NONE Steam 1 RUN: d030c8fe-2b34-49e1-a037-2731273cd5a9